[Event "FIDE Candidates 2026"]
[White "Giri,Anish"]
[Black "Caruana,Fabiano"]
[Site "Agios Georgios Pegeia"]
[Round "2.3"]
[Annotator "TA"]
[Result "1/2-1/2"]
[Date "2026.03.30"]
[WhiteElo "2753"]
[BlackElo "2795"]
[PlyCount "60"]
[TimeControl "60"]

{[%evp 9,60,14,18,19,16,0,52,38,34,10,10,10,24,20,12,7,15,25,7,13,13,6,59,6,12,12,10,11,10,12,12,0,0,0,2,0,0,0,0,0,0,0,0,0,0,0,0,0,0,0,0,0,0]} 1. d4 {[%emt 0:0:2]} d5 {[%emt 0:0:6]} 2. c4 {[%emt 0:0:4]} e6 {[%emt 0:0:3]} 3. Nf3 {[%emt 0:0:5]} Nd7 {[%emt 0:0:5]} 4. g3 {[%emt 0:0:6]} dxc4 {[%emt 0:0:6]} 5. Bg2 {[%emt 0:0:5]} Rb8 {[%emt 0:0:7]} 6. a4 {[%emt 0:1:11] D30: Queen's Gambit Declined: Systems without Nc3.} b6 {[%emt 0:0:18]} 7. Nfd2 {[%emt 0:1:18]} a5 $146 {[%emt 0:0:46]} (7... Ba6 $11 )({Predecessor:} 7... Qf6 8. Nxc4 Bb4+ 9. Nc3 Ba6 10. Na3 Ne7 11. Nc2 Bxc3+ 12. bxc3 O-O 13. O-O e5 {½-½ Matlakov,M (2602)-Aronian,L (2756) Wch Rapid op 2025 (12)} )8. Nxc4 {[%emt 0:0:7] White is slightly better.} Ba6 {[%emt 0:0:12]} 9. Nba3 {[%emt 0:0:4]} Bb4+ {[%emt 0:17:34]} 10. Bd2 {[%emt 0:2:8]} Bxa3 {[%emt 0:0:4]} 11. Nxa3 {[%emt 0:0:6]} Ne7 {[%emt 0:0:3]} 12. O-O {[%emt 0:1:31]} O-O {[%emt 0:7:28] Not much happening anymore} 13. b4 {[%emt 0:0:44]} axb4 {[%emt 0:0:7]} 14. Bxb4 {[%emt 0:0:3]} c5 {[%emt 0:15:33]} 15. Bc3 {[%emt 0:12:36]} Nf5 {[%emt 0:18:47]} (15... cxd4 $11 16. Qxd4 Nf5 )16. Nb5 {[%emt 0:17:3]} (16. d5 $1 $14 )Bxb5 $11 {[%emt 0:11:12] The position is equal.} 17. axb5 {[%emt 0:0:16]} cxd4 {[%emt 0:1:11]} 18. Bxd4 {[%emt 0:1:30]} Nxd4 {[%emt 0:0:4]} 19. Qxd4 {[%emt 0:0:4]} Nc5 {[%emt 0:0:3]} 20. Rad1 {[%emt 0:1:2]} Qxd4 {[%emt 0:4:16]} 21. Rxd4 {[%emt 0:0:13]} Rfd8 {[%emt 0:0:4]} 22. Rfd1 {[%emt 0:8:32]} Rxd4 {[%emt 0:0:4]} 23. Rxd4 {[%emt 0:0:3][%mdl 4096] Endgame KRB-KRN} Kf8 {[%emt 0:0:8]} 24. Rd6 {[%emt 0:8:51]} Ke7 {[%emt 0:1:48]} 25. Rc6 {[%emt 0:0:7]} Rd8 {[%emt 0:2:43]} 26. f4 {[%emt 0:17:14]} Rd6 {[%emt 0:0:22]} 27. Rc7+ {[%emt 0:0:3]} Rd7 {[%emt 0:0:4]} 28. Rc6 {[%emt 0:0:5]} Rd6 {[%emt 0:0:4]} 29. Rc7+ {[%emt 0:0:1]} Rd7 {[%emt 0:0:3]} 30. Rc6 {[%emt 0:0:2]} Rd6 {Weighted Error Value: White=0.09 (flawless) /Black=0.08 (flawless)   Mistake:       	White=1     	Black=2      OK:         	White=4     	Black=13} 1/2-1/2

[Event "FIDE Candidates 2026"]
[White "Esipenko,Andrey"]
[Black "Nakamura,Hikaru"]
[Site "Agios Georgios Pegeia"]
[Round "2.4"]
[Annotator "TA"]
[Result "1/2-1/2"]
[Date "2026.03.30"]
[WhiteElo "2698"]
[BlackElo "2810"]
[PlyCount "101"]
[TimeControl "60"]

{[%evp 15,100,28,26,35,28,28,31,32,39,24,52,32,40,53,48,45,74,56,48,40,22,29,39,31,24,35,24,31,52,52,94,91,87,97,81,93,80,80,112,60,68,65,65,67,59,29,32,29,60,70,65,63,64,35,33,44,172,161,157,164,165,165,171,155,165,95,129,95,103,90,89,118,83,83,83,86,108,8,8,0,0,0,0,0,0,0,0]} 1. c4 {[%emt 0:0:9]} e6 {[%emt 0:0:11]} 2. g3 {[%emt 0:0:11]} d5 {[%emt 0:0:29]} 3. Bg2 {[%emt 0:0:13]} Nf6 {[%emt 0:0:7]} 4. Nf3 {[%emt 0:0:8]} c5 {[%emt 0:5:39]} 5. cxd5 {[%emt 0:7:28]} Nxd5 {[%emt 0:1:56]} 6. O-O {[%emt 0:4:8]} Be7 {[%emt 0:12:20]} 7. d4 {[%emt 0:1:31]} cxd4 {[%emt 0:0:26]} 8. Nxd4 {[%emt 0:10:20]} O-O {[%emt 0:0:44]} 9. Qb3 {[%emt 0:3:44] D02: 1 d4 d5 2 Nf3 sidelines, including 2...Nf6 3 g3 and 2...Nf6 3 Bf4.} Nc6 {[%emt 0:3:18]} 10. Nxc6 {[%emt 0:5:4]} bxc6 {[%emt 0:0:17]} 11. e4 {[%emt 0:1:21] White is slightly better.} Nf6 {[%emt 0:2:47]} 12. h3 $146 {[%emt 0:1:29]} ({Predecessor:} 12. Nc3 Qc7 13. h3 Rb8 14. Qc2 Bc5 15. Ne2 Bb6 16. Bf4 e5 17. Bg5 Nd7 18. Be7 {½-½ Javakhishvili,L (2451)-Muzychuk,A (2525) Tbilisi FIDE GP (Women) 2024 (9)} )Ba6 {[%emt 0:33:20]} 13. Rd1 {[%emt 0:0:57]} Qb6 {[%emt 0:2:46]} 14. Be3 {[%emt 0:5:36]} Bc5 {[%emt 0:1:44]} 15. Bxc5 {[%emt 0:1:30]} Qxc5 {[%emt 0:0:2]} 16. Qc3 {[%emt 0:13:41]} Qb6 {[%emt 0:10:30]} 17. Nd2 {[%emt 0:10:4]} c5 {[%emt 0:0:46]} 18. b3 {[%emt 0:14:6]} Rad8 {[%emt 0:9:2]} 19. Nc4 {[%emt 0:1:57]} Bxc4 {[%emt 0:3:19]} 20. Qxc4 {[%emt 0:0:7]} e5 {[%emt 0:0:6]} 21. Rac1 {[%emt 0:7:58]} Rxd1+ {[%emt 0:4:57]} 22. Rxd1 {[%emt 0:0:2]} a5 {[%emt 0:0:7]} 23. Rc1 {[%emt 0:2:47]} Rc8 {[%emt 0:0:38]} 24. Qc3 {[%emt 0:0:23]} Qc7 {[%emt 0:0:44]} 25. h4 {[%emt 0:3:2]} h6 {[%emt 0:5:25]} 26. Rc2 {[%emt 0:2:29]} g6 {[%emt 0:6:14]} 27. Qe3 {[%emt 0:2:33]} (27. Bf1 $16 )Qd8 {[%emt 0:5:55]} 28. Rd2 {[%emt 0:2:28]} Qb6 {[%emt 0:1:35][%cal Oa5a4]} 29. Bf1 {[%emt 0:4:38][%cal Of1c4]} Kg7 {[%emt 0:0:20]} 30. a4 {[%emt 0:1:22]} Rc6 {[%emt 0:0:10][%cal Bc8c6,Bc6b6,Bb6b4][%mdl 32]} 31. Rc2 {[%emt 0:0:29]} c4 {[%emt 0:0:33]} 32. Qxb6 {[%emt 0:2:10]} ({Much weaker is} 32. Rxc4 Qxe3 33. fxe3 Rd6 $11 )Rxb6 {[%emt 0:0:1]} 33. Bxc4 {[%emt 0:1:54]} (33. Rxc4 Rxb3 34. Rc5 Nxe4 35. Rxe5 Nd2 $16 )Nxe4 $14 {[%emt 0:0:1][%mdl 4096] Endgame KRB-KRN} 34. Re2 {[%emt 0:0:1][%cal Bc2e2,Be2e5,Be5a5,Ba5a7][%mdl 32]} f5 {[%emt 0:0:47]} 35. f3 {[%emt 0:0:23]} Nd6 {[%emt 0:0:9]} (35... Nc5 $14 )36. Rxe5 $18 {[%emt 0:0:9]} Nxc4 {[%emt 0:0:1]} 37. bxc4 {[%emt 0:0:2] KR-KR. White is a pawn up.} Rb4 {[%emt 0:0:5]} 38. Rxa5 {[%emt 0:0:23]} Rxc4 {[%emt 0:0:0]} 39. Ra7+ {[%emt 0:0:32]} Kf6 {[%emt 0:0:2]} 40. a5 {[%emt 0:0:0]} (40. Ra6+ $18 Kg7 41. Kf2 )Rc3 {[%emt 0:0:0]} 41. Kf2 {[%emt 0:3:37]} Rc2+ {[%emt 0:7:33]} 42. Ke3 {[%emt 0:1:25]} Rc3+ {[%emt 0:0:2]} 43. Ke2 {[%emt 0:1:8] White is more active.} Rc2+ {[%emt 0:3:31]} 44. Kd3 {[%emt 0:6:25]} Rg2 {[%emt 0:0:45]} 45. Ra6+ {[%emt 0:6:54]} Kf7 {[%emt 0:2:6]} 46. Kd4 {[%emt 0:9:19]} (46. Ke3 $16 )Rxg3 $11 {[%emt 0:0:33] The position is equal.} 47. Ke5 {[%emt 0:0:8]} Rxf3 {[%emt 0:1:52]} 48. Ra7+ {[%emt 0:0:14]} Ke8 {[%emt 0:1:34]} 49. a6 {[%emt 0:2:39]} Ra3 {[%emt 0:1:6]} 50. Ke6 {[%emt 0:0:40]} Kd8 $1 {[%emt 0:1:38]} 51. Kf6 {[%emt 0:2:48] Blacks defense is rewarded with a draw.   Weighted Error Value: White=0.10 (very precise) /Black=0.10 (very precise)   Mistake:       	White=3     	Black=1      Inaccurate:     	White=2     	Black=6      OK:         	White=3     	Black=2      Best:        	---       	Black=2      Strong:       	---       	Black=1} 1/2-1/2

[Event "FIDE Candidates 2026"]
[White "Praggnanandhaa R"]
[Black "Sindarov,Javokhir"]
[Site "Agios Georgios Pegeia"]
[Round "3.1"]
[Annotator "TA"]
[Result "0-1"]
[Date "2026.03.31"]
[WhiteElo "2741"]
[BlackElo "2745"]
[PlyCount "80"]
[TimeControl "60"]

{[%evp 17,79,36,29,17,32,18,19,30,33,20,40,38,46,16,21,0,0,-9,0,0,0,-23,-30,-41,-77,-70,-31,-41,-43,-29,-15,-93,-91,-92,-66,-50,-55,-46,0,0,27,-15,-23,-7,0,-21,-22,-19,-14,-156,-119,-332,-344,-764,-738,-1242,-1287,-1262,-1255,-1555,-958,-972,-949,-808]} 1. d4 {[%emt 0:1:52]} d5 {[%emt 0:0:11]} 2. c4 {[%emt 0:0:22]} e6 {[%emt 0:0:6]} 3. Nc3 {[%emt 0:0:7]} Be7 {[%emt 0:0:6]} 4. Nf3 {[%emt 0:0:30]} Nf6 {[%emt 0:0:14]} 5. Bf4 {[%emt 0:0:23]} O-O {[%emt 0:0:21]} 6. e3 {[%emt 0:0:24]} c5 {[%emt 0:0:15]} 7. dxc5 {[%emt 0:1:10]} Bxc5 {[%emt 0:0:7]} 8. a3 {[%emt 0:2:8]} Nc6 {[%emt 0:0:16]} 9. Qc2 {[%emt 0:0:16]} Re8 {[%emt 0:0:8]} 10. Bg5 {[%emt 0:4:7] D37: Queen's Gambit Declined: 5 Bf4.} d4 {[%emt 0:7:35]} 11. Bxf6 {[%emt 0:20:17]} Qxf6 {[%emt 0:18:49]} 12. Ne4 {[%emt 0:1:33] The position is equal.} Qf5 {[%emt 0:0:5]} 13. b4 {[%emt 0:13:39]} Nxb4 $146 {[%emt 0:15:57]} ({Predecessor:} 13... Bf8 14. b5 Ne5 15. Nxd4 Qg6 16. g3 a6 17. Bg2 Bd7 18. bxa6 bxa6 19. c5 Rac8 {½-½ Machycek,L (2394)-Wydornik,R (2196) FIN jub50 sf11 email 2014} )14. axb4 {[%emt 0:1:4] A sharp opening} Bxb4+ {[%emt 0:0:4]} 15. Kd1 {[%emt 0:6:31]} (15. Ke2 {is interesting.} e5 16. Qa4 Bd7 17. Qxb4 Qxe4 18. Qb1 )dxe3 {[%emt 0:12:19]} 16. Bd3 {[%emt 0:5:45]} Qg6 {[%emt 0:1:33]} 17. fxe3 {[%emt 0:22:46]} f5 {[%emt 0:1:41]} 18. Ng3 {[%emt 0:2:16]} Bc5 {[%emt 0:3:24]} 19. Qc3 {[%emt 0:4:8] Repels a5} e5 {[%emt 0:6:12][%mdl 1024] Black has compensation.} 20. Bc2 {[%emt 0:6:35]} (20. Nxe5 $2 {perishes.} Qf6 21. Kc2 Rxe5 $19 )e4 {[%emt 0:0:48]} 21. Nd2 {[%emt 0:2:12]} Rd8 {[%emt 0:13:47]} 22. Kc1 {[%emt 0:1:34]} Qg5 {[%emt 0:4:39]} 23. Re1 {[%emt 0:0:57]} Qe7 {[%emt 0:4:13] [#]} 24. Re2 {[%emt 0:4:20]} (24. Qb2 $11 )Bb4 {[%emt 0:7:44]} 25. Qb2 {[%emt 0:0:9]} a5 {[%emt 0:9:22]} 26. Nb3 $1 {[%emt 0:5:56]} Ra6 {[%emt 0:0:16]} 27. Nd4 {[%emt 0:0:41]} Qg5 {[%emt 0:1:41]} (27... g6 $15 )28. Kb1 $11 {[%emt 0:2:0]} h5 {[%emt 0:1:59]} 29. Ka2 {[%emt 0:1:3]} h4 {[%emt 0:0:37]} 30. Nf1 {[%emt 0:0:12]} Bd7 {[%emt 0:0:26]} 31. Rd1 {[%emt 0:0:19]} Rc8 {[%emt 0:0:4]} 32. Nd2 {[%emt 0:0:39]} Rb6 {[%emt 0:0:18]} 33. c5 {[%emt 0:0:42]} Rxc5 $17 {[%emt 0:1:2] ...a4 would now be deadly.} 34. Qb3+ {[%emt 0:1:33] This move loses the game for White.} (34. Nc4 $17 Ra6 (34... Rxc4 35. Bb3 $16 )35. Nb3 Rxc4 (35... Rc7 36. Qe5 $16 )36. Rxd7 )Kh8 $19 {[%emt 0:0:23]} 35. Qf7 {[%emt 0:0:24] [#] Prevents Qh5.} (35. Kb1 Kh7 (35... a4 36. Qf7 $17 )36. Nc4 )Rxc2+ $1 {[%emt 0:0:2][%mdl 512] Black is clearly winning.} 36. Kb1 {[%emt 0:0:21]} (36. Nxc2 Be6+ )Rxd2 {[%emt 0:0:41]} 37. Rdxd2 {[%emt 0:0:14]} Bxd2+ {[%emt 0:0:1]} 38. Ka2 {[%emt 0:0:11]} Bxe3 {[%emt 0:0:48]} 39. Qxd7 {[%emt 0:0:15]} Bxd4 {[%emt 0:0:2]} 40. Qxd4 {[%emt 0:0:0]} Qf6 {[%emt 0:0:0] Weighted Error Value: White=0.68/Black=0.38   Loses game:     	White=1     	---        Mistake:       	White=3     	Black=1      Inaccurate:     	White=3     	Black=2      OK:         	White=3     	Black=5      Strong:       	White=1     	---        Brilliant:      	---       	Black=1} 0-1

[Event "FIDE Candidates 2026"]
[White "Caruana,Fabiano"]
[Black "Wei,Yi"]
[Site "Agios Georgios Pegeia"]
[Round "3.2"]
[Annotator "TA"]
[Result "1-0"]
[Date "2026.03.31"]
[WhiteElo "2795"]
[BlackElo "2754"]
[PlyCount "37"]
[TimeControl "60"]

{[%evp 11,37,27,31,0,0,0,0,0,0,0,0,0,0,16,2,0,20,0,0,0,17,18,49,16,355,333,329,314]} 1. Nf3 {[%emt 0:0:3]} Nf6 {[%emt 0:0:11]} 2. c4 {[%emt 0:0:7]} c5 {[%emt 0:0:5]} 3. g3 {[%emt 0:0:6]} g6 {[%emt 0:0:6]} 4. Nc3 {[%emt 0:0:21]} d5 {[%emt 0:0:31]} 5. cxd5 {[%emt 0:0:7]} Nxd5 {[%emt 0:0:7]} 6. Bg2 {[%emt 0:5:11]} Bg7 {[%emt 0:0:47]} 7. Qa4+ {[%emt 0:21:53] A34: Symmetrical English: 2 Nc3, lines with ...d5.} Nc6 {[%emt 0:1:16]} 8. Ng5 {[%emt 0:1:47]} Nb6 $146 {[%emt 0:0:37]} ({Predecessor:} 8... e6 9. Nge4 Nb6 10. Qd1 Qe7 11. d3 h6 12. Be3 Nd4 13. a4 O-O 14. a5 Nd7 15. O-O {1-0 Artemiev,V (2701)-Raja,R (2521) Qatar Masters op-A 2024 (7)} )9. Bxc6+ {[%emt 0:8:8] The position is equal.} bxc6 {[%emt 0:1:14]} 10. Qxc6+ {[%emt 0:0:3]} Bd7 {[%emt 0:0:6] Black sacrificed a pawn A strong pair of Bishops.} 11. Qxc5 {[%emt 0:3:35]} h6 {[%emt 0:2:17]} 12. Nf3 {[%emt 0:0:21]} Rc8 $132 {[%emt 0:0:9][%cal Ba8c8,Bc8c5,Bc5e5][%mdl 2080] Black puts up resistance} 13. Qa5 {[%emt 0:0:17]} Bh3 $1 {[%emt 0:0:57]} 14. Qb5+ {[%emt 0:16:30]} Nd7 {[%emt 0:3:57]} 15. Rg1 {[%emt 0:6:5]} O-O {[%emt 0:2:33]} 16. g4 {[%emt 0:2:26]} Rc5 {[%emt 0:27:39]} 17. Qb3 {[%emt 0:9:38]} Ne5 $2 {[%emt 0:21:20][%mdl 8192] [#]} (17... Nf6 $1 $11 {and Black has nothing to worry.} )18. Nxe5 $18 {[%emt 0:6:49]} Rxe5 {[%emt 0:8:0]} 19. Nd1 {[%emt 0:0:24] Weighted Error Value: White=0.04 (flawless) /Black=0.32   Loses game:     	---       	Black=1      Inaccurate:     	White=1     	Black=1      OK:         	White=2     	Black=4      Best:        	White=1     	---        Strong:       	---       	Black=1} 1-0

[Event "FIDE Candidates 2026"]
[White "Bluebaum,Matthias"]
[Black "Esipenko,Andrey"]
[Site "Agios Georgios Pegeia"]
[Round "3.4"]
[Annotator "TA"]
[Result "1/2-1/2"]
[Date "2026.03.31"]
[WhiteElo "2698"]
[BlackElo "2698"]
[PlyCount "81"]
[TimeControl "60"]

{[%evp 21,80,28,39,21,27,28,39,35,51,20,36,-4,-4,-4,-18,-6,-4,-9,-6,-9,-8,-7,0,0,-4,-7,0,0,0,0,0,-20,-20,-24,-24,-35,-22,-36,-34,-29,-29,-31,-32,-29,-14,-14,-14,-14,-14,-14,-14,-14,-14,-14,-8,-8,-8,-21,-8,-8,0]} 1. d4 {[%emt 0:0:4]} d5 {[%emt 0:0:12]} 2. c4 {[%emt 0:0:5]} e6 {[%emt 0:0:5]} 3. Nf3 {[%emt 0:0:6]} Nf6 {[%emt 0:0:6]} 4. Nc3 {[%emt 0:0:3]} Be7 {[%emt 0:0:7]} 5. cxd5 {[%emt 0:0:8]} exd5 {[%emt 0:0:6]} 6. Bf4 {[%emt 0:0:5]} O-O {[%emt 0:0:8]} 7. e3 {[%emt 0:0:6]} c5 {[%emt 0:0:6]} 8. dxc5 {[%emt 0:0:16]} Bxc5 {[%emt 0:0:6]} 9. Be2 {[%emt 0:0:22]} Nc6 {[%emt 0:0:7]} 10. O-O {[%emt 0:0:7]} Be6 {[%emt 0:0:6]} 11. Rc1 {[%emt 0:0:8]} Rc8 {[%emt 0:0:11]} 12. Bd3 {[%emt 0:0:23] D37: Queen's Gambit Declined: 5 Bf4.} h6 {[%emt 0:5:18]} 13. h3 {[%emt 0:3:14]} a6 {[%emt 0:5:16]} 14. Bb1 $146 {[%emt 0:5:34] White is slightly better.} ({Predecessor:} 14. a3 Qe7 15. Bb1 Rfd8 16. Nd4 Nxd4 17. exd4 Bd6 18. Qd2 Bxf4 19. Qxf4 Nh5 20. Qe5 {½-½ Tjiam,D (2379)-Pliester,L (2374) Bussum op 2009 (5)} )Qe7 {[%emt 0:16:14]} 15. Re1 {[%emt 0:17:56]} Rfd8 {[%emt 0:4:2]} 16. Re2 {[%emt 0:10:2]} d4 {[%emt 0:7:32]} 17. exd4 {[%emt 0:0:45]} Nxd4 {[%emt 0:0:18]} 18. Rd2 {[%emt 0:1:9][%cal Rf3d4]} Nxf3+ {[%emt 0:0:57]} 19. Qxf3 {[%emt 0:0:6]} Rxd2 {[%emt 0:2:47]} 20. Bxd2 {[%emt 0:0:26]} Rd8 {[%emt 0:3:25]} 21. Be3 {[%emt 0:7:25]} Bxe3 {[%emt 0:1:14]} 22. Qxe3 {[%emt 0:0:2]} Kf8 {[%emt 0:6:17]} 23. a3 {[%emt 0:7:16]} Bd7 {[%emt 0:2:56]} 24. Qxe7+ {[%emt 0:2:48]} Kxe7 {[%emt 0:0:2]} 25. Re1+ {[%emt 0:0:13]} Be6 {[%emt 0:3:9]} 26. Ne4 {[%emt 0:4:8]} b6 {[%emt 0:5:3]} 27. Rc1 {[%emt 0:5:22]} Rd4 {[%emt 0:10:54]} 28. Nc3 {[%emt 0:7:5]} Bc4 {[%emt 0:12:20]} 29. Rd1 {[%emt 0:9:38]} Rxd1+ {[%emt 0:1:39]} 30. Nxd1 $15 {[%emt 0:0:32][%mdl 4096] Endgame KBN-KBN} Nd5 {[%emt 0:6:50]} 31. Ne3 {[%emt 0:1:51]} Nxe3 {[%emt 0:0:11]} 32. fxe3 {[%emt 0:0:2] KB-KB} g5 {[%emt 0:5:59]} 33. g3 {[%emt 0:1:36] The position is equal.} Kd6 {[%emt 0:0:45]} 34. Kf2 {[%emt 0:0:31]} Ke5 {[%emt 0:0:29]} 35. h4 {[%emt 0:0:26]} f6 {[%emt 0:0:15]} 36. Bc2 {[%emt 0:0:25]} a5 {[%emt 0:0:17]} 37. Kf3 {[%emt 0:1:7]} Be6 {[%emt 0:0:54]} 38. Bd3 {[%emt 0:1:19]} Bd7 {[%emt 0:1:40]} 39. Bc2 {[%emt 0:0:18]} Bc8 {[%emt 0:0:26]} 40. Bd3 {[%emt 0:0:0]} Bd7 {[%emt 0:0:0]} 41. Bc2 {[%emt 0:0:37] Weighted Error Value: White=0.06 (flawless) /Black=0.03 (flawless)   Inaccurate:     	White=2     	---        OK:         	White=6     	Black=5} 1/2-1/2

[Event "FIDE Candidates 2026"]
[White "Sindarov,Javokhir"]
[Black "Caruana,Fabiano"]
[Site "Agios Georgios Pegeia"]
[Round "4.1"]
[Annotator "TA"]
[Result "1-0"]
[Date "2026.04.01"]
[WhiteElo "2745"]
[BlackElo "2795"]
[PlyCount "71"]
[TimeControl "60"]

{[%evp 14,70,39,8,7,12,15,9,17,24,35,43,37,42,40,35,33,38,47,58,61,40,53,62,96,89,98,90,108,100,106,87,126,108,148,140,170,173,166,139,200,206,270,257,370,356,350,362,482,443,440,390,395,395,1074,1060,880,1010,29972]} 1. d4 {[%emt 0:0:3]} d5 {[%emt 0:0:6]} 2. c4 {[%emt 0:0:7]} e6 {[%emt 0:0:4]} 3. Nf3 {[%emt 0:0:18]} dxc4 {[%emt 0:0:12]} 4. e3 {[%emt 0:0:16]} Nf6 {[%emt 0:0:11]} 5. Bxc4 {[%emt 0:0:9]} c5 {[%emt 0:0:8]} 6. O-O {[%emt 0:0:31]} Nc6 {[%emt 0:0:6][%cal Bb8c6,Bc6a5,Ba5b3][%mdl 32]} 7. Qe2 {[%emt 0:1:19]} a6 {[%emt 0:0:34]} 8. Nc3 {[%emt 0:0:56]} b5 {[%emt 0:1:26] D28: Queen's Gambit Accepted: Classical main line: 7 Qe2 with early ...Nc6.} 9. Bd3 {[%emt 0:0:29]} Bb7 {[%emt 0:11:36][%cal Bc8b7,Bb7c6,Bc6d5][%mdl 32]} 10. a4 $5 {[%emt 0:0:54][%mdl 4] A promising side line.} b4 {[%emt 0:9:47] The position is equal.} 11. Ne4 {[%emt 0:0:15]} Na5 {[%emt 0:0:39]} 12. Nxf6+ {[%emt 0:0:19]} (12. Nxc5 Bxc5 13. dxc5 Nb3 $17 )gxf6 {[%emt 0:8:11]} 13. dxc5 $146 {[%emt 0:0:7]} ({Predecessor:} 13. Rd1 Qb6 14. Rb1 c4 15. Bxc4 Nxc4 16. Qxc4 Be4 17. Ra1 Qb7 18. Ne1 Rg8 19. g3 {0-1 Turna,S (2278)-Banduka,Z (2115) SVK-ch op-A Banska Stiavnica 2007 (9.27)} )Nb3 {[%emt 0:17:42]} 14. c6 {[%emt 0:1:10]} Bxc6 {[%emt 0:1:55] [#]} 15. Nd4 $1 {[%emt 0:0:6]} Nxd4 {[%emt 0:15:31]} 16. exd4 {[%emt 0:0:5]} Rg8 {[%emt 0:0:13]} 17. g3 {[%emt 0:26:5]} (17. Bxa6 Rxg2+ 18. Kh1 Qd6 19. Qh5 Rxh2+ 20. Kg1 Rxh5 21. f4 Qxd4+ )f5 {[%emt 0:17:11]} 18. Bc4 {[%emt 0:11:0]} (18. Bxf5 $2 Qd5 $19 (18... Qxd4 $2 19. Bxe6 Qe4 20. Qxe4 $18 ))Rg4 {[%emt 0:18:1]} 19. Be3 {[%emt 0:4:23]} ({Wrong is} 19. Bxe6 $2 Re4 20. Bxf7+ Kxf7 $19 )Bd5 {[%emt 0:4:45]} 20. Rac1 {[%emt 0:4:47]} Be7 {[%emt 0:5:17]} 21. Bxa6 {[%emt 0:1:46]} Kf8 {[%emt 0:0:4]} 22. Bb5 {[%emt 0:3:10]} Bf6 {[%emt 0:0:11]} 23. Rfd1 {[%emt 0:5:3]} Kg7 {[%emt 0:0:20] [#]} 24. Bc6 $1 {[%emt 0:1:37]} Ra5 {[%emt 0:1:55]} 25. Bxd5 {[%emt 0:2:44]} Rxd5 {[%emt 0:0:2]} 26. Rc5 {[%emt 0:1:52]} Rd7 {[%emt 0:0:4]} (26... Bxd4 $16 {was necessary.} 27. Rxd5 Qxd5 )27. d5 $18 {[%emt 0:2:50]} exd5 {[%emt 0:0:5]} 28. Qf3 {[%emt 0:2:0]} Bxb2 {[%emt 0:0:42]} (28... d4 $142 )29. Rcxd5 {[%emt 0:0:14]} (29. Qxf5 Rg6 30. Rdxd5 (30. Rcxd5 $2 Rxd5 31. Rxd5 Qf6 $18 )Rxd5 31. Rxd5 Qf8 $18 )Rxd5 {[%emt 0:0:6]} 30. Rxd5 {[%emt 0:0:6]} Qe8 {[%emt 0:0:55]} 31. Rxf5 {[%emt 0:0:8]} Rg6 {[%emt 0:0:2]} 32. h4 {[%emt 0:0:11][%cal Bh2h4,Bh4h5][%mdl 32]} Bc3 {[%emt 0:0:50]} 33. h5 {[%emt 0:0:23]} Ra6 {[%emt 0:0:6]} (33... Rd6 34. h6+ Kg8 )34. Qg4+ {[%emt 0:1:52]} Kh8 {[%emt 0:0:2]} 35. Bd4+ {[%emt 0:0:32]} f6 {[%emt 0:0:13]} 36. Rc5 {[%emt 0:0:11] Weighted Error Value: White=0.06 (flawless) /Black=0.65   Mistake:       	---       	Black=3      Inaccurate:     	---       	Black=5      OK:         	White=4     	Black=1      Strong:       	White=1     	---} 1-0

[Event "FIDE Candidates 2026"]
[White "Bluebaum,Matthias"]
[Black "Praggnanandhaa R"]
[Site "Agios Georgios Pegeia"]
[Round "4.2"]
[Annotator "TA"]
[Result "1/2-1/2"]
[Date "2026.04.01"]
[WhiteElo "2698"]
[BlackElo "2741"]
[PlyCount "73"]
[TimeControl "60"]

{[%evp 13,73,27,16,0,1,0,16,13,13,9,7,6,10,8,0,16,14,15,10,2,14,14,14,13,13,0,0,0,0,0,0,0,3,6,2,2,0,-14,0,0,0,0,0,0,0,0,0,0,0,0,0,0,0,0,15,0,18,0,10,0,10,0]} 1. d4 {[%emt 0:0:4]} Nf6 {[%emt 0:1:15]} 2. c4 {[%emt 0:0:9]} e6 {[%emt 0:0:6]} 3. Nf3 {[%emt 0:0:9]} d5 {[%emt 0:0:8]} 4. Nc3 {[%emt 0:0:10]} c6 {[%emt 0:0:17]} 5. e3 {[%emt 0:0:17]} a6 {[%emt 0:0:16]} 6. Qc2 {[%emt 0:1:15]} c5 {[%emt 0:1:3]} 7. cxd5 {[%emt 0:0:14]} exd5 {[%emt 0:0:7]} 8. dxc5 {[%emt 0:0:44] The position is equal. D45: Semi-Slav: 5 e3.} Bxc5 {[%emt 0:1:26]} 9. Be2 {[%emt 0:0:10]} Nc6 {[%emt 0:1:29] 9...Nc6 was played by the boomers.} 10. O-O {[%emt 0:0:31]} Be6 {[%emt 0:5:30]} 11. a3 {[%emt 0:1:36]} Rc8 {[%emt 0:1:14]} 12. b4 {[%emt 0:5:21]} Bd6 {[%emt 0:1:35]} 13. Bb2 {[%emt 0:13:38][%cal Bc1b2,Bb2c3,Bc3e5][%mdl 32]} O-O {[%emt 0:1:44]} 14. Rac1 {[%emt 0:4:4]} Ne5 {[%emt 0:2:22]} 15. Nxe5 {[%emt 0:8:32]} Bxe5 {[%emt 0:0:4]} 16. Qb1 $146 {[%emt 0:0:6]} ({Predecessor:} 16. Qd2 Qd7 17. Rfd1 Rxc3 18. Bxc3 Ne4 19. Qe1 Nxc3 20. Rxc3 Bxc3 21. Qxc3 Rc8 22. Qd2 {1-0 Binder,M (1815)-Bachner,K (1819) AUT-ch U14 St Poelten 2009 (2)} )Qd6 {[%emt 0:23:54]} 17. f4 {[%emt 0:10:50]} Bxc3 {[%emt 0:0:42]} 18. Bxc3 {[%emt 0:0:29]} Ne4 {[%emt 0:1:31]} 19. Be5 {[%emt 0:0:50] This pair of bishops is nice.} Qd7 {[%emt 0:2:36]} 20. Rxc8 {[%emt 0:6:11]} Rxc8 {[%emt 0:0:49]} 21. Rc1 {[%emt 0:0:27]} f6 {[%emt 0:3:6]} 22. Bb2 {[%emt 0:4:26]} Nd6 {[%emt 0:10:37]} 23. Rxc8+ {[%emt 0:5:7]} Qxc8 {[%emt 0:0:7]} 24. Qc1 {[%emt 0:0:6]} Nc4 {[%emt 0:6:19]} 25. Bxc4 {[%emt 0:2:40]} Qxc4 {[%emt 0:4:15]} 26. Qxc4 {[%emt 0:0:24]} dxc4 $11 {[%emt 0:0:4][%mdl 4096] Endgame KB-KB} 27. e4 {[%emt 0:0:11]} f5 {[%emt 0:0:31]} 28. exf5 {[%emt 0:0:14]} Bxf5 {[%emt 0:0:3]} 29. Kf2 {[%emt 0:0:5]} Kf7 {[%emt 0:0:16]} 30. Ke3 {[%emt 0:0:5]} g6 {[%emt 0:0:8]} 31. Kd4 {[%emt 0:0:7]} Bd3 {[%emt 0:0:10]} 32. Ke5 {[%emt 0:0:13]} Bf1 {[%emt 0:0:15]} 33. g3 {[%emt 0:0:10]} Bh3 {[%emt 0:0:10]} 34. Kd5 {[%emt 0:0:9]} Bf1 {[%emt 0:0:7]} 35. Ke5 {[%emt 0:0:3]} Bh3 {[%emt 0:0:3]} 36. Kd5 {[%emt 0:0:3]} Bf1 {[%emt 0:0:4]} 37. Ke5 {[%emt 0:0:2] An even fight not without its subleties.   Weighted Error Value: White=0.04 (flawless) /Black=0.03 (flawless)   OK:         	White=13    	Black=9} 1/2-1/2